[Event "93rd German Championship 2022"]
[Site "Magdeburg"]
[Date "2022.08.14"]
[Round "1.16"]
[White "Pahl, Erik"]
[Black "Florstedt, Johannes"]
[Result "1-0"]
[ECO "B54"]
[WhiteElo "2203"]
[BlackElo "2368"]
[Annotator "TA"]
[PlyCount "133"]
[EventDate "2022.08.14"]
[EventType "swiss"]
[EventCountry "GER"]
[SourceTitle "playchess.com"]
[Source "ChessBase"]
[SourceQuality "1"]
[TimeControl "40/5400+30:1800+30"]

{[%evp 11,133,5,29,27,29,36,35,22,7,0,102,94,109,102,125,128,122,115,127,121,108,111,127,125,127,132,139,134,192,187,197,130,119,123,227,226,260,252,255,241,246,174,164,164,176,132,130,109,112,147,131,89,81,87,81,88,84,65,90,88,89,89,93,81,108,101,101,101,101,101,101,101,105,60,105,117,119,101,304,101,101,93,93,93,359,287,288,283,264,244,235,164,164,113,367,372,541,520,443,438,405,346,348,321,1907,1838,1479,1490,994,957,957,906,29979,29980,29980,29981,29981,29982,29982,29983,29983,29984,29984,29985]} 1. e4 {[%emt 0:00:09]} c5 {[%emt 0:00:11]} 2. Nf3 {[%emt 0:00:10]} d6 {[%emt 0:00:15]} 3. d4 {[%emt 0:00:45]} cxd4 {[%emt 0:00:07]} 4. Nxd4 {[%emt 0:00:06]} Nf6 {[%emt 0:00:12]} 5. f3 {[%emt 0:00:26]} e5 {[%emt 0:01:50]} 6. Nb3 {[%emt 0:01:10]} d5 {[%emt 0:00:15]} 7. Bg5 {[%emt 0:00:15] B55: Sicilian: 2...d6 3 d4 cxd4 4 Nxd4 Nf6 5 f3.} d4 {[%emt 0:00:50]} 8. c3 {[%emt 0:00:37][%cal Rc3d4]} Nc6 {[%emt 0:00:14]} 9. cxd4 $1 {[%emt 0:01:35][%mdl 4] White is slightly better. outshines the older 9.Bb5.} Bb4+ {[%emt 0:09:32]} 10. Bd2 {[%emt 0:00:47] [#]} Bxd2+ $146 {[%emt 0:25:29]} (10... Nxe4 $1 $11 {remains equal.} 11. Bxb4 Qh4+ 12. g3 Nxg3 13. hxg3 Qxh1) ({Predecessor:} 10... Nxe4 11. Bxb4 Qh4+ 12. g3 Nxg3 13. hxg3 Qxg3+ 14. Kd2 Nxb4 15. Bb5+ Ke7 16. Qc1 Qg2+ {½-½ (37) Mastrovasilis,D (2580)-Navara,D (2739) Poland 2017}) 11. Qxd2 $16 {[%emt 0:03:00]} exd4 {[%emt 0:03:39]} 12. Bb5 {[%emt 0:01:21]} Qb6 {[%emt 0:09:41]} 13. Bxc6+ {[%emt 0:03:36]} bxc6 {[%emt 0:00:04]} 14. Qxd4 {[%emt 0:01:32]} ({Resist} 14. Nxd4 c5 15. Nb3 Be6) 14... O-O {[%emt 0:08:32]} 15. Qxb6 {[%emt 0:02:34]} axb6 {[%emt 0:00:05]} 16. Nc3 {[%emt 0:02:22]} Nd7 {[%emt 0:03:23]} 17. O-O-O {[%emt 0:05:36]} Ne5 {[%emt 0:02:42]} 18. Rd6 {[%emt 0:05:04]} Ba6 {[%emt 0:06:31]} 19. Rhd1 {[%emt 0:02:04]} Rfc8 {[%emt 0:00:05]} (19... Rac8 $16 20. Nd4 Rfd8) 20. Nd4 $1 $18 {[%emt 0:01:05][%cal Bb3d4,Bd4f5,Bf5d6][%mdl 32]} Kf8 {[%emt 0:06:47]} 21. Kb1 {[%emt 0:08:10]} (21. b3 $18) 21... Bd3+ $16 {[%emt 0:09:01]} 22. Ka1 {[%emt 0:09:53] Black must now prevent f4.} c5 {[%emt 0:00:08]} (22... Rd8 $16 {might work better.} 23. Rxd8+ (23. Nxc6 Rxd6 24. Nxe5 Rad8 $15) 23... Rxd8) 23. Nf5 $1 $18 {[%emt 0:01:48]} c4 {[%emt 0:02:05]} 24. Rxb6 {[%emt 0:02:48]} Nd7 {[%emt 0:01:54]} 25. Rb5 {[%emt 0:05:15]} Nc5 {[%emt 0:02:26]} 26. Nd6 {[%emt 0:04:53]} Rc6 {[%emt 0:00:43]} 27. Nb7 $1 {[%emt 0:00:59]} Ne6 {[%emt 0:02:02]} 28. Na5 {[%emt 0:16:23]} Rc5 {[%emt 0:00:04] [#] Threatens to win with ...Rxb5.} 29. b4 $1 {[%emt 0:01:56]} Rxb5 {[%emt 0:00:03]} 30. Nxb5 {[%emt 0:00:40] Pair of Knights!} Rb8 {[%emt 0:00:03]} 31. a4 {[%emt 0:00:57]} Bc2 {[%emt 0:00:03][%csl LRa4,LRd1]} 32. Rc1 {[%emt 0:03:35]} Bxa4 {[%emt 0:00:14]} 33. Nd6 {[%emt 0:00:17] White is more active.} Rxb4 {[%emt 0:01:54]} 34. Rxc4 {[%emt 0:00:13]} Rxc4 {[%emt 0:00:12]} 35. Naxc4 $16 {[%emt 0:00:12][%mdl 4096] Endgame KBN-KNN} f6 {[%emt 0:02:17]} 36. Kb2 {[%emt 0:00:41]} Nf4 {[%emt 0:00:32]} 37. Ne3 {[%emt 0:00:16]} g6 {[%emt 0:00:40]} 38. Kc3 {[%emt 0:01:20]} Ke7 {[%emt 0:00:20]} 39. Ndc4 {[%emt 0:00:36]} Ke6 {[%emt 0:00:58] Against Nd5} 40. g3 {[%emt 0:03:57]} Ne2+ {[%emt 0:02:02]} 41. Kb4 {[%emt 0:30:35]} Bc6 {[%emt 0:31:13]} 42. Nc2 {[%emt 0:02:00]} Ke7 {[%emt 0:00:00]} 43. Kc5 {[%emt 0:00:00]} Ba4 {[%emt 0:00:00]} 44. Nd4 {[%emt 0:00:00]} Ng1 {[%emt 0:00:00]} (44... Nxd4 $16 45. Kxd4 Bd1) 45. Nb6 $2 {[%emt 0:00:00]} (45. f4 $18) 45... Bd1 {[%emt 0:00:00]} 46. Nd5+ {[%emt 0:00:00]} Kf7 {[%emt 0:00:00]} 47. f4 {[%emt 0:00:00][%cal Bf3f4,Bf4e5][%mdl 32] Strongly threatening e5.} Bg4 $2 {[%emt 0:00:00][%mdl 8192]} (47... Nf3 $16 48. h3 Nxd4 49. Kxd4 Bf3) 48. Kd6 {[%emt 0:00:00] e5 is the strong threat.} Nh3 {[%emt 0:00:00]} 49. e5 {[%emt 0:00:00]} fxe5 {[%emt 0:00:00]} 50. fxe5 {[%emt 0:00:00]} ({Not} 50. Kxe5 Nf2 51. Ne3 h5 $16) 50... Ng5 {[%emt 0:00:00] Prevents e6+.} 51. Nc7 {[%emt 0:00:00]} Ne4+ {[%emt 0:00:00]} 52. Kd5 {[%emt 0:00:00]} (52. Kc6 $18) 52... Nc3+ $2 {[%emt 0:00:00][%mdl 8192] [#]} (52... Nd2 $16 53. e6+ Kf6) 53. Kc6 $1 $18 {[%emt 0:00:00]} h5 {[%emt 0:00:00]} (53... Ne4 $142 54. e6+ Ke7 55. Nd5+ Ke8) 54. e6+ {[%emt 0:00:00]} Bxe6 {[%emt 0:00:00]} 55. Ncxe6 {[%emt 0:00:00]} Kf6 {[%emt 0:00:00]} 56. Kd6 {[%emt 0:00:00] Hoping for Nc5.} Ne4+ {[%emt 0:00:47]} 57. Kd5 {[%emt 0:00:00]} Nd2 {[%emt 0:00:39]} (57... Nc3+ 58. Kc4 Nd1) 58. Nc5 {[%emt 0:00:00] Ne4+ would kill now.} Nf1 {[%emt 0:03:30]} 59. Ne4+ {[%emt 0:00:00]} Kg7 {[%emt 0:00:03]} 60. Nf3 {[%emt 0:00:00]} h4 {[%emt 0:00:08]} 61. gxh4 {[%emt 0:00:00] And now Ke5 would win.} Kh6 {[%emt 0:00:06]} 62. Kd4 {[%emt 0:01:29] White mates.} Kh5 {[%emt 0:01:17]} 63. Ng3+ {[%emt 0:00:19]} Nxg3 {[%emt 0:00:05]} 64. hxg3 {[%emt 0:00:08]} Kg4 {[%emt 0:00:03]} 65. Ne5+ {[%emt 0:01:00]} Kxg3 {[%emt 0:00:06]} 66. Nxg6 {[%emt 0:00:07]} Kg4 {[%emt 0:00:03]} 67. Ke5 {[%emt 0:00:09] Weighted Error Value: White=0.14 (very precise) /Black=0.32} 1-0

[Event "93rd German Championship 2022"]
[Site "Magdeburg"]
[Date "2022.08.14"]
[Round "1.17"]
[White "Langheinrich, Ferenc"]
[Black "Stricker, Florian"]
[Result "1-0"]
[ECO "B07"]
[WhiteElo "2357"]
[BlackElo "2182"]
[Annotator "TA"]
[PlyCount "55"]
[EventDate "2022.08.14"]
[EventType "swiss"]
[EventCountry "GER"]
[SourceTitle "playchess.com"]
[Source "ChessBase"]
[SourceQuality "1"]
[TimeControl "40/5400+30:1800+30"]

{[%evp 9,55,59,115,115,110,100,121,120,124,108,121,110,134,137,130,92,95,72,172,155,166,177,168,147,150,58,214,221,368,359,422,421,462,467,560,555,540,541,535,539,544,537,532,524,507,468,431,369]} 1. e4 {[%emt 0:00:05]} d6 {[%emt 0:00:06]} 2. d4 {[%emt 0:00:14]} Nf6 {[%emt 0:00:06]} 3. Nc3 {[%emt 0:00:10]} g6 {[%emt 0:00:09]} 4. h3 {[%emt 0:00:15]} Nbd7 {[%emt 0:00:36]} 5. Nf3 {[%emt 0:03:14]} c5 {[%emt 0:14:19] [#]} (5... e5 $14) 6. dxc5 $146 {[%emt 0:04:34] B07: Pirc Defence: Miscellaneous Systems.} ({Predecessor:} 6. Be3 cxd4 7. Bxd4 Bg7 8. Bc4 O-O 9. O-O Nb6 10. Bb3 a5 11. a4 Bd7 12. e5 {1-0 (42) Peltola,L (2016)-Valo,V (1917) Finland 2015}) 6... Nxc5 {[%emt 0:00:30]} 7. e5 {[%emt 0:01:07]} Nfd7 {[%emt 0:18:20] [#]} 8. exd6 {[%emt 0:03:01] White is better.} (8. Bb5 dxe5 9. Qd5 Qc7 $14) 8... Bg7 {[%emt 0:03:19]} 9. Nd5 {[%emt 0:14:17]} exd6 {[%emt 0:02:01]} 10. Bg5 {[%emt 0:03:43]} f6 {[%emt 0:02:38]} 11. Be3 {[%emt 0:01:58]} (11. Qe2+ $6 Kf7 12. Be3 Nb6 13. Nxb6 axb6 $14) 11... O-O {[%emt 0:03:02]} 12. Bc4 {[%emt 0:06:21] aiming for Nb6+.} Kh8 {[%emt 0:06:18][%cal Ob7b5]} 13. h4 {[%emt 0:08:30][%cal Bh3h4,Bh4h5,Bh5h6][%mdl 32] h5 is the strong threat.} Re8 {[%emt 0:14:39]} (13... Nb6 $16 {might work better.} 14. Nxb6 Qxb6) 14. h5 $36 {[%emt 0:10:03][%mdl 2048] Black must now prevent Nf4. White is on the roll.} g5 {[%emt 0:01:06] Against Nf4} 15. h6 {[%emt 0:03:48]} Bf8 {[%emt 0:00:21][%cal Ob7b5]} 16. b4 {[%emt 0:13:10]} Ne6 {[%emt 0:00:27]} 17. O-O {[%emt 0:03:36] White is much more active.} ({White should play} 17. c3 $16) 17... Ne5 $2 {[%emt 0:10:20] This move loses the game for Black.} (17... Bxh6 $14 18. Bd3 Rg8) 18. Nxe5 {[%emt 0:02:32]} dxe5 {[%emt 0:00:33] [#]} (18... fxe5 {was worth a try.} 19. Qh5 Nf4 20. Bxf4 gxf4) 19. Qh5 $1 {[%emt 0:01:26]} b5 {[%emt 0:08:45]} 20. Bb3 {[%emt 0:02:16] White is clearly winning.} ({Not} 20. Qf7 Bxh6 21. Bd3 (21. Nxf6 Re7 $16) (21. Bxb5 Rf8 $11) (21. Qxf6+ Bg7 $16) 21... Bg7 $16) 20... Bb7 {[%emt 0:01:24]} 21. Rad1 {[%emt 0:02:07]} Nd4 {[%emt 0:01:48]} 22. Qf7 {[%emt 0:04:57]} Bxd5 {[%emt 0:04:36]} 23. Bxd5 {[%emt 0:00:07][%csl Gd5][%cal Rf7g8]} Bxh6 {[%emt 0:00:28]} 24. Bxa8 {[%emt 0:00:25]} Qxa8 {[%emt 0:00:12]} 25. Bxd4 {[%emt 0:01:40]} exd4 {[%emt 0:00:25]} 26. Rxd4 {[%emt 0:01:00]} Rf8 {[%emt 0:00:10]} 27. Qh5 {[%emt 0:00:43]} Bg7 {[%emt 0:00:13]} 28. Re1 {[%emt 0:01:25] Weighted Error Value: White=0.08 (flawless) /Black=0.36} ({Much less strong is} 28. Rd7 Qe4 29. Rxa7 Qxc2 $18) 1-0

[Event "93rd German Championship 2022"]
[Site "Magdeburg"]
[Date "2022.08.14"]
[Round "1.18"]
[White "Westphal, Wolfgang"]
[Black "Bethke, Richard"]
[Result "0-1"]
[ECO "B52"]
[WhiteElo "2175"]
[BlackElo "2381"]
[Annotator "TA"]
[PlyCount "88"]
[EventDate "2022.08.14"]
[EventType "swiss"]
[EventCountry "GER"]
[SourceTitle "playchess.com"]
[Source "ChessBase"]
[SourceQuality "1"]
[TimeControl "40/5400+30:1800+30"]

{[%evp 15,88,12,8,3,104,80,100,83,73,0,-13,-3,-7,-68,-53,-56,-54,-50,-59,-126,-113,-135,-132,-135,-117,-131,-134,-131,-105,-127,-120,-133,-97,-99,-102,-108,-93,-196,-200,-217,-229,-220,-208,-249,-233,-335,-333,-325,-329,-489,-481,-500,-379,-464,-439,-384,-254,-465,-475,-482,-466,-477,-477,-469,-458,-987,-970,-6295,-5293,-29984,-29985,-29985,-29986,-29985,-29977]} 1. e4 {[%emt 0:00:05]} c5 {[%emt 0:00:08]} 2. Nf3 {[%emt 0:00:11]} d6 {[%emt 0:00:04]} 3. Bb5+ {[%emt 0:00:18]} Bd7 {[%emt 0:00:42]} 4. Bxd7+ {[%emt 0:00:09]} Qxd7 {[%emt 0:00:04]} 5. O-O {[%emt 0:00:10]} Nf6 {[%emt 0:00:03]} 6. e5 {[%emt 0:04:09]} dxe5 {[%emt 0:00:05]} 7. Nxe5 {[%emt 0:00:09]} Qc7 {[%emt 0:00:25]} 8. d4 {[%emt 0:01:00]} e6 {[%emt 0:01:48]} 9. Bf4 {[%emt 0:00:16][%cal Oe5g6] B52: Sicilian: Moscow Variation with 3...Bd7.} Bd6 {[%emt 0:01:10]} (9... Qc8 $11 {remains equal.}) 10. Na3 $1 $16 {[%emt 0:02:50][%cal Bb1a3,Ba3b5,Bb5c7][%mdl 32] [#] Hoping for Nb5.} Qc8 $146 {[%emt 0:21:05]} ({Predecessor:} 10... Bxe5 11. Bxe5 Qc6 12. c4 Nbd7 13. d5 Qb6 14. Bg3 O-O 15. dxe6 Qxe6 16. Re1 Qc6 {1-0 (112) Bologan,V (2663)-Naiditsch,A (2574) Mainz 2004}) 11. Nb5 {[%emt 0:01:49] White is better.} Be7 {[%emt 0:00:04]} 12. Nc4 {[%emt 0:07:48]} ({Better is} 12. Nd3 $16 {And now Nc7+ would win.} Nd5 13. Nd6+ (13. dxc5 Nxf4 14. Nxf4 O-O $11) 13... Bxd6 14. Bxd6) 12... O-O $11 {[%emt 0:00:05]} 13. Nc7 {[%emt 0:00:11]} cxd4 {[%emt 0:05:53]} 14. Qf3 {[%emt 0:13:20]} (14. Nd2 $11) 14... Na6 {[%emt 0:06:52]} 15. Nxa8 {[%emt 0:11:13][%cal Oa8b6] aiming for Nab6!} Qxc4 {[%emt 0:00:05]} 16. Qxb7 {[%emt 0:00:11]} Nd5 {[%emt 0:00:24]} 17. Bg3 {[%emt 0:08:41] [#]} ({White should play} 17. Be5 $15) 17... Qc8 $1 $17 {[%emt 0:01:48]} (17... Qxc2 $2 18. Qxa6 Qc8 {[#]} 19. Nc7 $1 {[%mdl 512]} Nxc7 20. Qxc8 Rxc8 21. Rac1 $18) 18. Qb5 {[%emt 0:05:52][%cal Of1d1]} Nc5 {[%emt 0:02:43]} (18... Qxc2 $2 19. Qxa6 Qxb2 20. Nc7 $18) 19. Rad1 {[%emt 0:09:00]} ({But not} 19. b4 $2 Ne4 20. Nc7 Nxc7 $19) 19... a6 {[%emt 0:05:03]} 20. Qc4 {[%emt 0:04:12]} Qxa8 {[%emt 0:00:17]} 21. Qxd4 {[%emt 0:00:53]} Rd8 {[%emt 0:08:31]} 22. Qg4 {[%emt 0:05:41]} Rc8 {[%emt 0:05:10]} 23. Qe2 {[%emt 0:05:15]} Qc6 $40 {[%emt 0:03:16][%mdl 128] White is in trouble.} 24. c4 {[%emt 0:00:19]} Nf6 {[%emt 0:00:50] Black is more active.} 25. b3 {[%emt 0:00:07]} a5 {[%emt 0:03:09]} 26. Rd4 {[%emt 0:00:19]} (26. Be5 $17) 26... Nfe4 $19 {[%emt 0:02:53]} 27. Re1 {[%emt 0:02:20][%cal Rd4e4]} f5 {[%emt 0:01:52]} 28. Be5 {[%emt 0:01:06]} Nd7 {[%emt 0:00:49] Pair of Knights!} 29. Bg3 {[%emt 0:03:33]} Bf6 {[%emt 0:06:03][%cal Be7f6,Bf6g7,Bg7d4][%mdl 32]} 30. Rd3 {[%emt 0:01:34]} (30. Rxe4 {was worth a try.} fxe4 31. Qxe4) 30... Ndc5 {[%emt 0:00:08]} 31. Rf3 {[%emt 0:00:15]} g5 {[%emt 0:01:08][%cal Bg7g5,Bg5g4][%mdl 32] Against Bf4} 32. h4 {[%emt 0:01:38]} (32. Rd1 {keeps fighting.}) 32... g4 {[%emt 0:03:38]} 33. Rf4 {[%emt 0:00:21]} Bg7 {[%emt 0:02:32]} 34. Bh2 {[%emt 0:00:55]} h5 {[%emt 0:03:26]} 35. f3 {[%emt 0:00:10]} Bd4+ {[%emt 0:00:26]} 36. Kh1 $2 {[%emt 0:01:16]} (36. Kf1 g3 37. Bg1 Bxg1 38. fxe4) 36... Nf2+ {[%emt 0:01:23]} 37. Kg1 {[%emt 0:00:02]} Nh3+ {[%emt 0:00:09]} 38. Kh1 {[%emt 0:00:16]} Nxf4 {[%emt 0:00:35]} 39. Bxf4 {[%emt 0:00:06]} e5 {[%emt 0:01:23]} 40. Bxe5 {[%emt 0:01:00]} (40. Be3 $142 Qf6 41. Bg5) 40... Re8 {[%emt 0:01:19]} 41. f4 {[%emt 0:30:16] [#]} Ne4 $1 {[%emt 0:30:17]} 42. Qc2 {[%emt 0:01:48]} (42. Qxe4 fxe4) 42... Bxe5 {[%emt 0:02:41] Black mates.} 43. fxe5 {[%emt 0:00:07]} Rxe5 {[%emt 0:00:08]} 44. Rd1 {[%emt 0:00:21]} Ng3+ {[%emt 0:00:16] Weighted Error Value: White=0.70/Black=0.13 (very precise)} 0-1

[Event "93rd German Championship 2022"]
[Site "Magdeburg"]
[Date "2022.08.14"]
[Round "1.19"]
[White "Miller, Eduard"]
[Black "Parvanyan, Alfred"]
[Result "1/2-1/2"]
[ECO "A50"]
[WhiteElo "2350"]
[BlackElo "2126"]
[Annotator "TA"]
[PlyCount "221"]
[EventDate "2022.08.14"]
[EventType "swiss"]
[EventCountry "GER"]
[SourceTitle "playchess.com"]
[Source "ChessBase"]
[SourceQuality "1"]
[TimeControl "40/5400+30:1800+30"]

{[%evp 9,221,29,31,0,0,0,-12,-15,0,-11,37,22,28,27,29,22,20,16,36,10,19,18,18,16,2,0,29,8,20,0,0,-31,-29,-33,-25,-27,-19,-115,-126,-122,-111,-123,-118,-125,-117,-253,-244,-264,-240,-245,-238,-241,-243,-238,-268,-267,-265,-279,-275,-444,-160,-171,-168,-202,-202,-193,-177,-169,-98,-104,-11,-14,0,0,0,0,0,0,0,0,627,609,579,375,363,355,414,403,600,523,570,510,555,500,393,319,319,319,319,319,319,319,272,288,260,0,0,0,0,0,0,0,0,0,0,0,0,0,0,0,0,0,0,0,0,0,0,0,0,0,0,0,0,0,0,0,0,0,0,0,0,0,0,0,0,0,0,0,0,0,0,0,0,0,0,0,0,0,0,0,0,0,0,0,0,0,0,0,0,0,0,0,0,0,0,0,0,0,0,0,0,0,0,0,0,0,0,0,0,0,0,0,0,0,0,0,0,0,0,0,0,0,0,0,0,0,0,0,0,0,0,0,0,0]} 1. d4 {[%emt 0:00:03]} Nf6 {[%emt 0:00:36]} 2. c4 {[%emt 0:00:06]} c6 {[%emt 0:00:19]} 3. Nc3 {[%emt 0:10:32]} d5 {[%emt 0:01:33]} 4. e3 {[%emt 0:00:06]} g6 {[%emt 0:03:33]} 5. Nf3 {[%emt 0:05:15]} Bg7 {[%emt 0:03:09]} 6. Ne5 {[%emt 0:04:45] D94: Grünfeld: 4 Nf3 Bg7 5 e3.} O-O {[%emt 0:02:21]} 7. Bd3 {[%emt 0:14:23]} dxc4 {[%emt 0:09:08]} 8. Bxc4 {[%emt 0:05:06]} Nbd7 {[%emt 0:03:31]} 9. f4 {[%emt 0:06:55]} Nb6 {[%emt 0:04:57]} (9... c5 $11 {is more appropriate.}) 10. Bb3 {[%emt 0:03:41]} Nbd5 {[%emt 0:04:26]} 11. O-O {[%emt 0:04:03]} Bf5 {[%emt 0:05:37] [#]} 12. g4 $146 {[%emt 0:05:55]} ({Predecessor:} 12. Bc2 Bxc2 13. Qxc2 Nxc3 14. bxc3 Qd5 15. c4 Qe4 16. Qxe4 Nxe4 17. c5 Bxe5 18. fxe5 {½-½ (30) Krivec,S (2144)-Ivanussa,B (2097) Slovenia 2019}) 12... Nxc3 {[%emt 0:02:48]} 13. bxc3 {[%emt 0:00:12]} Be4 {[%emt 0:00:07]} 14. g5 {[%emt 0:00:45]} Ne8 {[%emt 0:21:10]} 15. Nd3 {[%emt 0:03:31]} Nd6 {[%emt 0:04:20]} 16. Nf2 {[%emt 0:00:49]} Qd7 {[%emt 0:04:44]} 17. Qe2 {[%emt 0:09:17]} Bf5 {[%emt 0:04:09]} 18. e4 {[%emt 0:03:05]} Be6 {[%emt 0:02:26]} 19. Bb2 {[%emt 0:02:11]} a5 {[%emt 0:08:28][%cal Ba7a5,Ba5a4,Ba4a3][%mdl 32]} 20. Rac1 {[%emt 0:06:45]} Bxb3 {[%emt 0:01:07]} 21. axb3 {[%emt 0:00:10]} a4 {[%emt 0:00:10]} 22. e5 {[%emt 0:05:17]} Nf5 {[%emt 0:01:47]} 23. b4 {[%emt 0:00:55]} (23. bxa4 $11 {remains equal.} Rxa4 24. Nd3) 23... a3 $17 {[%emt 0:01:49]} 24. Ba1 {[%emt 0:00:03]} h6 {[%emt 0:03:54]} 25. Ne4 {[%emt 0:00:26]} b6 $36 {[%emt 0:01:37][%mdl 2048] Black is really pushing.} 26. Rcd1 {[%emt 0:01:22]} b5 {[%emt 0:01:37]} 27. d5 {[%emt 0:03:13]} (27. Rde1 $17) 27... cxd5 $19 {[%emt 0:00:53]} 28. Nc5 {[%emt 0:00:05]} Qc6 {[%emt 0:00:17]} 29. e6 {[%emt 0:00:56]} f6 {[%emt 0:01:38]} 30. gxh6 {[%emt 0:01:02]} Bxh6 {[%emt 0:00:42]} 31. Rd3 {[%emt 0:01:32]} Kg7 {[%emt 0:00:52]} 32. Qf3 {[%emt 0:00:39]} Rfd8 {[%emt 0:00:47]} 33. Rf2 {[%emt 0:01:05]} Rac8 {[%emt 0:00:46]} 34. Ra2 $2 {[%emt 0:00:23]} (34. h4 {was called for.} Kh8 35. Kh1) 34... d4 $2 {[%emt 0:00:31]} (34... Qd6 $19 35. Rf2 Rxc5 36. bxc5 Qxc5) 35. Qxc6 $17 {[%emt 0:00:30]} Rxc6 {[%emt 0:00:04]} 36. cxd4 {[%emt 0:01:10]} Bxf4 {[%emt 0:00:05]} 37. Raxa3 {[%emt 0:00:22]} Rh8 {[%emt 0:02:07]} 38. h3 {[%emt 0:00:28]} Rd6 {[%emt 0:00:15]} (38... Rcc8 $19 39. Bc3 Be3+ 40. Kh2 Rh5) 39. d5 {[%emt 0:00:35]} Bc1 {[%emt 0:00:48]} (39... Rdd8 $17 {aiming for ...Rh4.} 40. Bc3 Ra8 41. Rxa8 Rxa8) 40. Ra7 $11 {[%emt 0:00:33]} Rhd8 {[%emt 0:00:20]} 41. Ne4 {[%emt 0:09:46]} Rxe6 {[%emt 0:13:04]} 42. dxe6 {[%emt 0:00:10]} Rxd3 {[%emt 0:00:08]} 43. Bxf6+ $1 {[%emt 0:00:15]} Kh6 {[%emt 0:01:36] ...Be3+ is the strong threat.} 44. Rd7 {[%emt 0:00:39]} Rxd7 {[%emt 0:08:58][%mdl 8192]} (44... Rxh3 $11 45. Kg2 Rb3 46. Bxe7 Nxe7 47. Rxe7 Rb2+ 48. Kf3 Rb3+ 49. Kg2 Rb2+ 50. Kg3 Rb3+ 51. Kg2) 45. exd7 {[%emt 0:00:10][%mdl 4096] Endgame KBN-KBN} Be3+ {[%emt 0:00:04]} 46. Kg2 Bb6 47. Bg5+ {[%emt 0:03:22]} Kh5 {[%emt 0:05:17]} 48. Bf4 {[%emt 0:09:27]} Kh4 {[%emt 0:05:15]} (48... Nh4+ $142 49. Kh1 Nf3) 49. Ng5 {[%emt 0:04:16] Black must now prevent Ne6.} e5 {[%emt 0:00:32]} 50. Nf3+ {[%emt 0:00:52]} Kh5 {[%emt 0:00:06]} 51. Bxe5 {[%emt 0:00:49]} Ne3+ {[%emt 0:00:22]} 52. Kg3 {[%emt 0:00:26] Threatens to win with Nd4.} Nd5 {[%emt 0:00:26] [#]} 53. Nd4 $1 {[%emt 0:04:35]} Nxb4 {[%emt 0:00:38]} 54. Bf6 {[%emt 0:00:06] Inhibits Bd8.} Nd5 {[%emt 0:00:39]} 55. d8=Q {[%emt 0:00:07]} Bxd8 {[%emt 0:00:09]} 56. Bxd8 {[%emt 0:00:05]} b4 {[%emt 0:00:20] [#]} 57. Kf3 $2 {[%emt 0:02:32]} (57. h4 $1 $18 {Strongly threatening Bg5.} Ne3 58. Ne2 Nf5+ 59. Kh3) 57... g5 $1 {[%emt 0:00:48] The position is equal.} 58. Kg3 Kg6 {[%emt 0:00:51]} 59. Kg4 {[%emt 0:01:54]} Ne3+ {[%emt 0:00:04]} 60. Kf3 {[%emt 0:00:14]} Nd5 {[%emt 0:00:09]} 61. Ke4 {[%emt 0:00:29]} Nf4 {[%emt 0:01:07]} 62. h4 {[%emt 0:01:27]} Nh3 {[%emt 0:00:05]} 63. hxg5 {[%emt 0:01:35]} Nxg5+ {[%emt 0:00:06]} 64. Kd3 Nf7 {[%emt 0:00:23]} 65. Bc7 {[%emt 0:00:31]} Kf6 {[%emt 0:00:23]} 66. Kc4 {[%emt 0:00:06]} Ng5 {[%emt 0:01:32]} 67. Bd8+ {[%emt 0:00:05]} Kg6 {[%emt 0:00:08]} 68. Kxb4 {[%emt 0:00:05]} Nf7 {[%emt 0:00:31]} 69. Be7 {[%emt 0:00:18]} Nh6 {[%emt 0:00:23]} 70. Bc5 {[%emt 0:00:16]} Nf5 {[%emt 0:00:12]} 71. Nf3 {[%emt 0:00:07]} Kf6 {[%emt 0:00:17]} 72. Kc4 {[%emt 0:00:16]} Ke6 {[%emt 0:00:07]} 73. Bb4 {[%emt 0:00:33]} Nd6+ {[%emt 0:00:43]} 74. Kc5 {[%emt 0:00:57]} Ne4+ {[%emt 0:00:16]} 75. Kd4 {[%emt 0:00:16]} Nf6 {[%emt 0:00:10]} 76. Bd2 {[%emt 0:00:41]} Nh7 {[%emt 0:00:19]} 77. Ne5 {[%emt 0:01:21]} Nf6 {[%emt 0:00:36]} 78. Bg5 {[%emt 0:00:23]} Nh7 {[%emt 0:00:12]} 79. Bh4 {[%emt 0:00:06]} Nf6 {[%emt 0:00:08]} 80. Nd3 {[%emt 0:00:20]} Kf5 {[%emt 0:01:20]} 81. Nc5 {[%emt 0:00:16]} Ng4 {[%emt 0:00:41]} 82. Ne4 {[%emt 0:00:28]} Ne5 {[%emt 0:00:43]} 83. Kd5 {[%emt 0:00:11]} Ng6 {[%emt 0:00:51]} 84. Nd6+ {[%emt 0:00:26]} Kf4 {[%emt 0:00:31]} 85. Bf6 {[%emt 0:00:20]} Kf3 {[%emt 0:00:57]} 86. Bg5 {[%emt 0:01:06]} Nf4+ {[%emt 0:00:20]} 87. Ke5 {[%emt 0:00:12]} Nd3+ {[%emt 0:00:49]} 88. Kf5 {[%emt 0:00:06]} Nf2 {[%emt 0:00:41]} 89. Nc4 {[%emt 0:00:15]} Nd3 {[%emt 0:00:14]} 90. Nd2+ {[%emt 0:00:41]} Ke2 {[%emt 0:00:25]} 91. Ke4 {[%emt 0:00:23]} Nc5+ {[%emt 0:00:50]} 92. Kd5 {[%emt 0:00:10]} Nd3 {[%emt 0:00:04]} 93. Kd4 {[%emt 0:00:14]} Ne1 {[%emt 0:00:31]} 94. Ke4 {[%emt 0:00:08]} Nd3 {[%emt 0:00:12]} 95. Bh6 {[%emt 0:02:34]} Nc5+ {[%emt 0:00:40]} 96. Kd4 {[%emt 0:00:16]} Nd3 {[%emt 0:00:48]} 97. Nc4 {[%emt 0:01:01]} Nf2 {[%emt 0:00:18]} 98. Ne5 {[%emt 0:00:11]} Nd1 {[%emt 0:00:19]} 99. Bf4 {[%emt 0:01:30]} Nf2 {[%emt 0:00:10]} 100. Bg3 {[%emt 0:00:41]} Nd1 {[%emt 0:00:38]} 101. Bh4 {[%emt 0:01:17]} Nf2 {[%emt 0:00:16]} 102. Bg5 {[%emt 0:00:09]} Nd1 {[%emt 0:00:23]} 103. Nd3 {[%emt 0:00:53]} Nf2 {[%emt 0:00:30]} 104. Ne5 {[%emt 0:00:33]} Nd1 {[%emt 0:00:09]} 105. Bc1 {[%emt 0:00:25]} Nf2 {[%emt 0:00:12]} 106. Be3 {[%emt 0:00:12]} Nd1 {[%emt 0:00:10]} 107. Bg1 {[%emt 0:00:05]} Nf2 {[%emt 0:00:25]} 108. Kd5 {[%emt 0:00:19]} Nd3 {[%emt 0:01:01]} 109. Nc4 {[%emt 0:00:12]} Nf2 {[%emt 0:00:13]} 110. Kd4 {[%emt 0:00:09]} Ng4 {[%emt 0:00:40]} 111. Ke4 {[%emt 0:00:39] What a bad dream for Black.  Weighted Error Value: White=0.24 (precise) /Black=0.29 (precise)} 1/2-1/2